Cogmind - Beta 10.1 @@@ ROGUE MODE // 2020.09.21 @ 19:01:06 Player: Tmvn Result: Destroyed by Y-45 Defender with Beam Rifle Performance ------------- Evolutions (1) 500 Regions Visited (2) 400 Robots Destroyed (20) 100 Value Destroyed (671) 671 Prototype IDs (0) 0 Alien Tech Used (0) 0 Bonus (0) 0 TOTAL SCORE: 1671 Bonus ------- None Cogmind --------- Core Integrity 0/400 Matter 300/300 Energy 265/265 System Corruption 0% Temperature Cool (9) Movement Walking (120) Location -9/Materials Parts ------- > --- POWER (1) -------- Improved Ion Engine > --- PROPULSION (3) --- Aluminum Leg Aluminum Leg Improved Aluminum Leg > --- UTILITY (3) ------ Small Storage Unit Visual Processing Unit Improved Signal Interpreter > --- WEAPON (2) ------- Beam Rifle Heavy Hammer > --- INVENTORY (6) ---- Ion Engine Light Ion Engine Aluminum Leg Large Matter Pod (16) Improved Sensor Array Heavy Hammer Peak State ------------ > --- POWER ------------ Improved Ion Engine > --- PROPULSION ------- Aluminum Leg Improved Aluminum Leg Improved Aluminum Leg > --- UTILITY ---------- Small Storage Unit Visual Processing Unit Improved Signal Interpreter > --- WEAPON ----------- Beam Rifle Heavy Hammer > --- INVENTORY -------- Light Ion Engine Heavy Hammer [Rating: 16] Favorites ----------- Power Ion Engine Engine Ion Engine Propulsion Improved Aluminum Leg Leg Improved Aluminum Leg Utility Small Storage Unit Storage Small Storage Unit Processor Visual Processing Unit Weapon Light EM Pulse Cannon Energy Gun EM Pulse Gun Energy Cannon Light EM Pulse Cannon Ballistic Gun Autogun Impact Weapon Heavy Hammer Build | -11 -10 -9 ------- Run | Scr Mat Mat Slots Evolved 2 | . . 2 Power . | . . . Propulsion 1 | . . 1 Utility 1 | . . 1 Weapon . | . . . Parts Attached 33 | . 10 23 Power 7 | . 2 5 Engine 7 | . 2 5 Core . | . . . Reactor . | . . . Propulsion 15 | . 2 13 Treads . | . . . Leg 15 | . 2 13 Wheel . | . . . Hover . | . . . Flight . | . . . Utility 2 | . 1 1 Device . | . . . Storage . | . . . Processor 2 | . 1 1 Hackware . | . . . Protection . | . . . Artifact . | . . . Weapon 9 | . 5 4 Energy Gun 3 | . 2 1 Energy Cannon 1 | . 1 . Ballistic Gun 2 | . 2 . Ballistic Cannon . | . . . Launcher . | . . . Special Weapon . | . . . Impact Weapon 3 | . . 3 Slashing Weapon . | . . . Piercing Weapon . | . . . Special Melee Weapon . | . . . Unidentified Prototypes . | . . . Parts Lost 11 | . 1 10 Power 2 | . . 2 Propulsion 6 | . . 6 Utility . | . . . Weapon 3 | . 1 2 Highest Loss Streak 8 | . 1 8 Average Slot Usage (%) 93 | . 95 92 Engine 12 | . 14 10 Leg 29 | . 28 30 Storage 12 | . 14 11 Processor 15 | . 9 21 Energy Gun 6 | . 10 3 Energy Cannon 8 | . 13 3 Ballistic Gun 5 | . 4 6 Impact Weapon 2 | . . 5 Naked Turns . | . . . Heaviest Build 17 | 9 16 17 Greatest Support 36 | 20 26 36 Greatest Overweight (x) . | . . . Average Overweight (x) . | . . . Largest Inventory Capacity 6 | 6 6 6 Average Capacity 6 | 6 6 6 Most Carried 6 | 6 6 6 Average Carried 5 | 6 5 4 Final Capacity 6 | 6 6 6 Final Carried 6 | 6 6 6 Class Distribution -------------------- 78% | Mutant 21% | Scavenger-Mutant Dominant Class ---------------- Mutant | -10/Materials Mutant | -9/Materials Resources | -11 -10 -9 ----------- Run | Scr Mat Mat Matter Collected 628 | 200 148 280 Remotely . | . . . Salvage Created 874 | . 420 454 Parts 41 | . 21 20 Haulers Intercepted . | . . . Recyclers Shooed 1 | . . 1 Parts Field Recycled . | . . . Retrieved Matter . | . . . Parts Self-Destructed . | . . . Prevented . | . . . Kills | -11 -10 -9 ------- Run | Scr Mat Mat Combat Hostiles Destroyed 16 | . 8 8 Melee 3 | . . 3 Guns 7 | . 2 5 Cannons 5 | . 5 . Classes Destroyed 7 | . 4 3 Builder 1 | . 1 . Recycler 1 | . . 1 Operator 1 | . 1 . Watcher 1 | . 1 . Grunt 13 | . 8 5 Duelist 1 | . . 1 Sentry 2 | . . 2 Best Kill Streak 4 | . 2 4 Combat Bots Only 3 | . 2 3 Max Kills in Single Turn 1 | . 1 1 Gunslinging . | . . . Exploded . | . . . Melee 1 | . . 1 Uniques/NPCs Destroyed . | . . . Combat | -11 -10 -9 -------- Run | Scr Mat Mat Damage Taken 1842 | . 260 1582 Core 484 | . 72 412 Absorbed by Shields . | . . . Core Remaining (%) 85 | 100 71 . Volleys Fired 69 | . 32 37 Largest 2 | . 2 2 Hottest 96 | . 96 79 Shots Fired 101 | . 61 40 Gun 69 | . 32 37 Cannon 32 | . 29 3 Launcher . | . . . Special . | . . . Kinetic 33 | . 12 21 Thermal 18 | . 2 16 Explosive . | . . . Electromagnetic 50 | . 47 3 Robot Hit Streak 12 | . 5 12 Robot Miss Streak 3 | . 3 2 Penetration Max . | . . . Secondary Targets . | . . . Shots Hit Robots 79 | . 33 46 Core Hits 29 | . 15 14 Critical Hits . | . . . Critical Kills . | . . . Critical Parts Destroyed . | . . . Melee Attacks 19 | . . 19 Impact 19 | . . 19 Slashing . | . . . Piercing . | . . . Sneak Attacks . | . . . Combat Hostiles . | . . . Follow-up Attacks . | . . . Damage Inflicted 1517 | . 704 813 Guns 661 | . 231 430 Cannons 536 | . 473 63 Explosions . | . . . Melee 320 | . . 320 Ramming . | . . . Kinetic 374 | . 89 285 Thermal 145 | . . 145 Explosive . | . . . Electromagnetic 678 | . 615 63 Impact 320 | . . 320 Slashing . | . . . Piercing . | . . . Highest Corruption . | . . . Average Corruption . | . . . Corruption Purged . | . . . Overload Shots . | . . . Overflow Damage 17 | . 17 . Projectiles 17 | . 17 . Explosions . | . . . Melee . | . . . Knockbacks . | . . . Impact . | . . . Kinetic . | . . . Secondary . | . . . Self-Inflicted Damage . | . . . Shots . | . . . Rammed . | . . . Targets Rammed . | . . . Kicked . | . . . Crushed . | . . . Highest Temperature 290 | . 290 155 Average Temperature 77 | . 84 62 Received Heat Transfer 813 | . 141 672 Effects 2 | . 2 . Interference 2 | . 2 . Siege Activations . | . . . Robots Corrupted 1 | . 1 . Combat Hostiles 1 | . 1 . Parts Fried 6 | . 5 1 Impact Corruptions 1 | . . 1 Robots Melted . | . . . Combat Hostiles . | . . . Parts Melted . | . . . Heat Transferred 370 | . . 370 Parts Sabotaged . | . . . Parts Stolen . | . . . Parts Stripped . | . . . Power Chain Reactions . | . . . Missiles Intercepted . | . . . Alert | -11 -10 -9 ------- Run | Scr Mat Mat Peak Influence 212 | . 212 162 Initial 32 | . . 32 Average 92 | . 104 81 Maximum Alert Level 1 | . 1 . Low Security (%) 99 | 100 98 100 Level 1 . | . 1 . Level 2 . | . . . Level 3 . | . . . Level 4 . | . . . Level 5 . | . . . High Security . | . . . Max Security . | . . . Squads Dispatched 3 | . 3 . Investigation 1 | . 1 . Extermination . | . . . Reinforcement 2 | . 2 . Assault . | . . . Garrison . | . . . Intercept . | . . . Construction Impeded . | . . . Haulers Reinforced . | . . . Stealth | -11 -10 -9 --------- Run | Scr Mat Mat Distress Signals 3 | . 1 2 Communications Jammed . | . . . Distress Signals . | . . . Times Spotted 29 | . 17 12 Peak Tracking Total 4 | . 4 4 Tactical Retreats 3 | . 2 1 Traps | -11 -10 -9 ------- Run | Scr Mat Mat Traps Triggered 1 | . 1 . Indirectly . | . . . Trap Hack Attempts . | . . . Triggered . | . . . Disarmed . | . . . Reprogrammed . | . . . Reused . | . . . Traps Extracted . | . . . Installed . | . . . Triggered . | . . . Machines | -11 -10 -9 ---------- Run | Scr Mat Mat Machines Disabled 1 | . 1 . Max in Single Turn 1 | . 1 . Machines Sabotaged . | . . . Garrisons Compromised . | . . . Overloaded Fab Kills . | . . . Fab Network Shutdowns . | . . . Hacking | -11 -10 -9 --------- Run | Scr Mat Mat Machines Accessed 3 | . 1 2 Terminals 2 | . 1 1 Fabricators . | . . . Repair Stations 1 | . . 1 Recycling Units . | . . . Scanalyzers . | . . . Garrison Access . | . . . Total Hacks 6 | . 1 5 Successful 4 | . 1 3 Failed 2 | . . 2 Catastrophic . | . . . Database Lockouts . | . . . Manual . | . . . Terminals 2 | . 1 1 Fabricators . | . . . Repair Stations 4 | . . 4 Recycling Units . | . . . Scanalyzers . | . . . Garrison Access . | . . . Terminal Hacks 2 | . 1 1 Alert Level 1 | . . 1 Dispatch Records 1 | . 1 . Fabricator Hacks . | . . . Repair Station Hacks 2 | . . 2 Scan Component 1 | . . 1 Repair 1 | . . 1 Recycling Unit Hacks . | . . . Scanalyzer . | . . . Garrison Access Hacks . | . . . Unauthorized Hacks . | . . . Terminals . | . . . Fabricators . | . . . Repair Stations . | . . . Recycling Units . | . . . Scanalyzers . | . . . Garrison Access . | . . . Data Cores Recovered . | . . . Used . | . . . Hacking Detections . | . . . Full Trace Events . | . . . Feedback Events . | . . . Feedback Blocked . | . . . Robot Schematics Acquired . | . . . Robots Built . | . . . Matter . | . . . Time . | . . . Total Robot Build Rating . | . . . Part Schematics Acquired . | . . . Parts Built . | . . . Matter . | . . . Time . | . . . Total Part Build Rating . | . . . Parts Repaired 1 | . . 1 Time 32 | . . 32 Parts Recycled . | . . . Recycled Matter . | . . . Retrieved Matter . | . . . Retrieved Components . | . . . Parts Scanalyzed . | . . . Part Schematics Acquired . | . . . Parts Damaged . | . . . Bothacking | -11 -10 -9 ------------ Run | Scr Mat Mat Used RIF Installer . | . . . Robots Hacked . | . . . Non-combat . | . . . Combat . | . . . Robot Hacks Applied . | . . . Relay Couplers Released . | . . . Robots Rewired . | . . . Allies Hacked . | . . . Hacks Repelled . | . . . Allies | -11 -10 -9 -------- Run | Scr Mat Mat Total Allies . | . . . Largest Group . | . . . Highest-Rated Group . | . . . Highest-Rated Ally . | . . . Total Orders . | . . . Ally Attacks . | . . . Total Damage . | . . . Kills . | . . . Allies Corrupted . | . . . Allies Melted . | . . . Intel | -11 -10 -9 ------- Run | Scr Mat Mat Robot Analysis Total . | . . . Derelict Logs Recovered . | . . . Drone Launches . | . . . Drone Recoveries . | . . . Exploration | -11 -10 -9 ------------- Run | Scr Mat Mat Turns Passed 899 | 2 450 447 Spaces Moved 478 | 2 280 196 Core . | . . . Treads . | . . . Legs 478 | 2 280 196 Wheels . | . . . Hover . | . . . Flight . | . . . Fastest Speed 120 | 120 120 120 Average Speed 120 | 120 120 120 Slowest Speed 120 | 120 120 120 Overloaded Moves . | . . . Propulsion Burnouts . | . . . Robots Hopped . | . . . Cave-ins Triggered . | . . . Exploration Rate (%) 24 | 2 48 22 Regions Visited 2 Branch Regions . Pre-discovered Areas . | . . . Known Exits Taken . | . . . Unknown Exits Taken 2 | 1 1 . Scrap Searched . | . . . Spaces Dug . | . . . Terrain Destroyed . | . . . Melee . | . . . Projectile . | . . . AOE . | . . . Terrain Rammed . | . . . Walls Destroyed . | . . . Machines Disabled . | . . . Actions | -11 -10 -9 --------- Run | Scr Mat Mat Total 669 | 1 337 331 Wait 52 | . 4 48 Move 476 | 1 279 196 Hop . | . . . Pick Up 6 | . 3 3 Fast Attach 9 | . 2 7 Attach 10 | . 2 8 Detach 1 | . . 1 Swap 14 | . 6 8 Drop 13 | . 9 4 Fire 69 | . 32 37 Melee 19 | . . 19 Ram . | . . . Kick . | . . . Crush . | . . . Escape Stasis . | . . . Rewire . | . . . Trap . | . . . Miscellaneous . | . . . Route ------- -11/Scrapyard -10/Materials (discovered 2 exits: *Mat / [*Min]) -9/Materials History --------- Turn | Location | Event 1 | -11/Scrapyard | Discovered new exit (range 1) 3 | -11/Scrapyard | Entered Materials 256 | -10/Materials | Discovered new exit (range 8) 305 | -10/Materials | Build established: Mutant 369 | -10/Materials | Discovered new exit (range 10) 453 | -10/Materials | Entered another Materials area 453 | -9/Materials | Evolved 2 slots: Propulsion x1, Utility x1 522 | -9/Materials | Repaired Imp. Aluminum Leg 751 | -9/Materials | Core integrity fell below 50% 767 | -9/Materials | Core integrity fell below 20% 790 | -9/Materials | Lost 8 parts (2p5n1w) 900 | -9/Materials | Destroyed by Y-45 Defender with Beam Rifle Last Messages --------------- Imp. Aluminum Leg destroyed. G-34 Mercenary misfires. R-06 Scavenger collects Lgt. Treads. R-06 Scavenger collects Imp. Heat Sink. G-34 Mercenary destroyed. R-06 Scavenger collects Heat Sink. Acquired Aluminum Leg. Acquired Ion Engine. Acquired Lrg. Matter Pod. Acquired Imp. Sensor Array. W-16 Scout sends out distress signal. K-01 Serf cleans the Electrolysis Chamber. G-34 Mercenary destroyed. K-01 Serf collects debris. Dropped Aluminum Leg. Acquired 41 matter. K-01 Serf cleans the Electrolysis Chamber. Connecting with Terminal... >>Alert(Check) Current Alert Level: Low Security Map ----- +----------------------------------------------------+ | ?????????????????????????????????????????????????? | | ?????????????????????????????????????????????????? | | ?????????????????????????????????????????????????? | | ?????????????????????????????????????????????????? | | ?????????????????????????????????????????????????? | | ?????????????????????????????????????????????????? | | ?????????????????????????????????????????????????? | | ?????????????????????????????????????????????????? | | ?????????????????????????????????????????????????? | | ?????????????????????????????????????????????????? | | ?????????????????????????????????????????????????? | | ?????????????????????????????????????????????????? | | ????????????????????????###??????????????????????? | | ???????????????????????? ??????????????????????? | | ???????????????????????? ??????????????????????? | | ???????????????????????? Y ??????????????????????? | | ???????????????????????? ??????????????????????? | | ???????????????????????? ??????????????????????? | | ????????????????????????# #??????????????????????? | | ????????????????????????# #??????????????????????? | | ????????????????????????# #??????????????????????? | | ????????????????????????# #??????????????????????? | | ????????????????????????# #??????????????????????? | | ??????????????????????### ###????????????????????? | | ?? ???????????????????# #????????????????????? | | ?? ????################u @ #????????????????????? | | ?# ????# + T #????????????????????? | | ?# ????# ######### +??????????????????? | | ?# #???# """ #????#### !###??????????????????? | | ?# #???# """*#??? ###u###????????????????????? | | ?# #???# """ #?? #? ?????????????????????? | | ?# #???# =#? #? ????????????????????? | | ## ########+#+# #? """ #???????????????????? | | # # #? """ /???????????????????? | | # + #? """ ##??????????????????? | | # # #? s #???????????????????? | | # ########+##?? #?#?####???????????????????? | | # # #????? #??????????????????????????? | | # # """ #??????? #??????????????????????????? | | # # """ #???????????????????????????????????? | | # + """ ! #???????????????????????????????????? | | # # #???????????????????????????????????? | | # # """ #???????????????????????????????????? | | # """ #???????????????????????????????????? | | # """ #???????????????????????????????????? | | # #???????????????????????????????????? | | # ##########???????????????????????????????????? | | # #????????????????????????????????????????????? | | # #????????????????????????????????????????????? | | # #????????????????????????????????????????????? | +----------------------------------------------------+ Best States ------------- Heat Dissipation 28 Energy Generation 12 Energy Capacity 265 Matter Stores 300 Matter Capacity 300 Sight Range 18 Terrain Scan Density 10 Evasion (%) 40 Item Schematics ----------------- None Robot Schematics ------------------ None Fabricated ------------ Nothing Alien Tech Used ----------------- None Achievements -------------- None Challenges ------------ None Game ------ Seed SuperchargedCannonInverter Manual? 0 Play Time 00:11:37 Cumulative 11.0 hours Start 2020.09.21 @ 18:49:00 End 2020.09.21 @ 19:01:06 Sessions 1 Manual Loads 0 Difficulty Rogue Special Mode None Game No. 28 Rogue 28 Adventurer 0 Explorer 0 Win Type - Total 0 Types 0/0/0/0/0/0/0/0/0 Lore% 20 Gallery% 23 Achievement% 21 Wizard Run 0 Options --------- ASCII 1 Keyboard 1 Movement Vi Keybinds 0 Fullscreen 2 Font 24/Proggy Map View 76x50 Tactical HUD 0 Map Filters BRIGHTNESS(90)|SATURATION(66) Filters BRIGHTNESS(90)|SATURATION(66) Steam 1 RUN: 231bf955-5f53-481f-933b-66736289cfe8